bitfinex/quotes_SOLUSD_20250402
["timestamp","ask_amount","ask_price","bid_price","bid_amount"]
[1743556217300,0.063,125.65,125.58,0.28432314]
[1743556217508,0.063,125.65,125.59,18.64964886]
[1743556217709,0.063,125.65,125.59,26.61174886]
[1743556219394,0.063,125.65,125.59,18.64964886]
[1743556220002,25.71291534,125.65,125.58,80.14]
[1743556220207,25.3655922,125.63,125.58,80.14]
[1743556221520,53.2272922,125.62,125.58,80.14]
[1743556221714,25.3655922,125.6,125.58,80.14]
[1743556221912,31.6904922,125.6,125.55,80.14]
[1743556222214,7.9605,125.62,125.55,80.14]
[1743556223597,33.3260922,125.62,125.55,80.14]
[1743556224318,25.3655922,125.61,125.55,80.14]
[1743556224518,25.3655922,125.6,125.55,80.14]
[1743556225316,25.3655922,125.59,125.55,80.14]
[1743556225509,7.9636,125.57,125.55,80.14]
[1743556225704,7.9636,125.57,125.54,0.03]
[1743556226016,27.8728,125.57,125.54,0.03]
[1743556226223,25.3655922,125.55,125.49,80.14]
[1743556226425,7.7172,125.56,125.49,80.14]
[1743556226426,25.3655922,125.54,125.5,30.0]
[1743556226812,25.3655922,125.53,125.5,30.0]
[1743556227013,25.3655922,125.53,125.49,80.14]
[1743556227636,45.2798922,125.54,125.49,80.14]
[1743556228006,19.9143,125.54,125.49,80.14]
[1743556228628,33.3304922,125.55,125.49,80.14]
[1743556229725,27.8772,125.55,125.49,80.14]
[1743556230021,25.3655922,125.53,125.47,80.14]
[1743556230621,15.6816,125.56,125.47,108.1099]
[1743556230827,7.9638,125.57,125.49,0.28432314]
[1743556231121,7.9617,125.6,125.52,1.5113]
[1743556231314,7.9617,125.6,125.53,18.64964886]
[1743556231711,7.9611,125.61,125.53,26.61564886]
[1743556231900,53.2294922,125.61,125.52,81.6513]
[1743556232105,27.8639,125.61,125.52,81.6513]
[1743556232516,27.8639,125.61,125.53,18.64964886]
[1743556232915,25.3655922,125.59,125.53,80.14]
[1743556233325,25.3655922,125.58,125.53,80.14]
[1743556234316,7.9636,125.57,125.53,80.14]
[1743556234517,25.3655922,125.6,125.53,88.1061]
[1743556234830,7.9624,125.59,125.53,88.1061]
[1743556235204,0.063,125.58,125.53,88.1061]
[1743556235410,25.4285922,125.58,125.53,80.14]
[1743556236308,7.9636,125.57,125.53,80.14]
[1743556237328,0.063,125.58,125.53,88.106]
[1743556238629,0.063,125.58,125.53,89.6121]
[1743556240426,0.063,125.58,125.53,81.6461]
[1743556240618,0.063,125.58,125.53,80.14]
[1743556241230,0.063,125.58,125.53,88.1061]
[1743556241819,0.063,125.58,125.53,80.14]
[1743556244514,25.4285922,125.58,125.53,80.14]
[1743556245036,0.063,125.58,125.53,80.14]
[1743556245653,25.4285922,125.58,125.53,80.14]
[1743556246746,7.9636,125.57,125.53,80.14]
[1743556249153,8.026,125.58,125.53,80.14]
[1743556249653,0.063,125.58,125.53,88.1062]
[1743556254971,0.063,125.58,125.53,80.14]
[1743556259872,0.063,125.58,125.53,88.1361]
[1743556260479,0.063,125.58,125.54,38.933972]
[1743556260683,0.063,125.58,125.56,38.64964886]
[1743556260972,0.063,125.58,125.57,26.06964886]
[1743556261675,0.063,125.58,125.56,80.14]
[1743556262173,25.4285922,125.58,125.56,80.14]
[1743556262546,7.9636,125.57,125.56,80.14]
[1743556262741,53.2383922,125.57,125.53,80.17]
[1743556262942,33.3812922,125.54,125.48,80.14]
[1743556263168,25.3655922,125.52,125.47,0.03]
[1743556263343,25.3655922,125.52,125.49,42.39136035]
[1743556263541,25.3655922,125.51,125.49,42.39136035]
[1743556264165,25.3655922,125.51,125.49,12.39136035]
[1743556264548,7.9681,125.5,125.49,12.39136035]
[1743556265477,33.3332922,125.51,125.49,12.39136035]
[1743556265855,33.3332922,125.51,125.47,0.03]
[1743556266565,7.9687,125.49,125.47,0.03]
[1743556266773,7.9662,125.53,125.47,80.17]
[1743556266979,33.3317922,125.53,125.47,80.17]
[1743556267351,25.3655922,125.51,125.47,80.17]
[1743556267676,25.3655922,125.53,125.47,80.17]
[1743556267871,15.9815,125.54,125.47,80.17]
[1743556267872,41.3470922,125.54,125.47,80.17]
[1743556268252,6.5071,125.54,125.47,80.17]
[1743556268450,25.3655922,125.54,125.47,80.17]
[1743556268759,25.3655922,125.53,125.47,80.17]
[1743556269650,25.3655922,125.52,125.47,80.17]
[1743556270557,7.9674,125.51,125.47,80.17]
[1743556272976,7.9668,125.52,125.47,80.17]
[1743556273579,7.9664,125.53,125.47,88.14]
[1743556274182,33.3319922,125.53,125.47,80.17]
[1743556274376,25.3655922,125.52,125.47,80.17]
[1743556274998,7.9687,125.49,125.47,0.03]
[1743556275172,33.3342922,125.49,125.47,0.03]
[1743556275766,7.9687,125.49,125.47,0.03]
[1743556277080,9.5471,125.51,125.47,0.03]
[1743556277382,7.9662,125.53,125.48,7.42]
[1743556278488,7.9662,125.53,125.48,87.56]
[1743556278683,7.9643,125.56,125.48,107.56]
[1743556278982,7.9643,125.56,125.49,0.28432314]
[1743556279358,8.0262,125.58,125.51,18.64964886]
[1743556279564,0.063,125.58,125.52,6.1018]
[1743556279901,0.063,125.58,125.53,7.44]
[1743556280380,8.026,125.58,125.53,7.44]
[1743556280587,8.026,125.58,125.51,98.78964886]
[1743556280777,25.3655922,125.57,125.51,87.58]
[1743556281181,25.3655922,125.57,125.51,80.14]
[1743556281370,7.9649,125.55,125.51,80.14]
[1743556281784,7.9636,125.57,125.51,80.14]
[1743556283269,33.3291922,125.57,125.51,80.14]
[1743556284793,53.2383922,125.57,125.51,80.14]
[1743556285270,25.3655922,125.56,125.49,87.58]
[1743556285790,25.3655922,125.56,125.49,80.14]
[1743556285977,25.3655922,125.55,125.49,80.14]
[1743556286898,27.8794,125.54,125.49,80.14]
[1743556287390,7.9636,125.57,125.5,18.64964886]
[1743556287577,8.0261,125.58,125.51,0.28432314]
[1743556287783,8.0261,125.58,125.52,18.64964886]
[1743556288091,8.0261,125.58,125.53,7.46]
[1743556288669,0.063,125.58,125.53,7.46]
[1743556289668,0.063,125.58,125.53,80.14]
[1743556289903,25.4285922,125.58,125.53,80.14]
[1743556290068,0.063,125.58,125.53,80.14]
[1743556290788,0.063,125.58,125.53,88.1059]
[1743556290984,0.063,125.58,125.53,80.14]
[1743556291292,25.4285922,125.58,125.53,80.14]
[1743556292375,0.063,125.58,125.53,80.14]
[1743556294068,0.063,125.58,125.53,88.1061]
[1743556294271,0.063,125.58,125.54,18.64964886]
[1743556294466,0.063,125.58,125.54,98.78964886]
[1743556295069,0.063,125.58,125.56,18.64964886]
[1743556295286,0.063,125.58,125.57,26.12964886]
[1743556295476,0.063,125.58,125.57,106.26964886]
[1743556297985,0.063,125.58,125.57,80.14]
[1743556298497,200.063,125.58,125.57,80.14]
[1743556298795,200.063,125.58,125.55,87.62]
[1743556299090,200.063,125.58,125.55,80.14]
[1743556299288,7.9636,125.57,125.55,80.14]
[1743556299890,33.3291922,125.57,125.55,80.14]
[1743556300071,33.3291922,125.57,125.48,8.25342314]
[1743556300072,25.64991534,125.56,125.48,80.14]
[1743556300278,25.3655922,125.52,125.48,80.14]
[1743556301093,25.3655922,125.53,125.48,80.14]
[1743556301277,25.3655922,125.56,125.48,87.62]
[1743556301477,53.2383922,125.57,125.48,87.62]
[1743556302378,25.3655922,125.56,125.48,87.62]
[1743556303489,7.9649,125.55,125.48,87.62]
[1743556303997,33.3304922,125.55,125.48,87.62]
[1743556304202,53.2427922,125.55,125.48,87.62]
[1743556305292,7.9649,125.55,125.48,87.62]
[1743556305884,7.9645,125.56,125.51,18.64964886]
[1743556306083,7.9645,125.56,125.51,98.78964886]
[1743556307198,245.3374922,125.58,125.51,80.14]
[1743556307199,53.2383922,125.57,125.51,80.14]
[1743556307500,25.3655922,125.56,125.51,80.14]
[1743556309085,7.9649,125.55,125.51,80.14]
[1743556311813,15.84314882,125.53,125.49,80.14]
[1743556312696,29.5036,125.55,125.49,80.14]
[1743556312884,45.34674882,125.55,125.49,80.14]
[1743556313079,15.84314882,125.53,125.49,80.14]
[1743556313282,7.9668,125.52,125.49,80.14]
[1743556313593,43.72704882,125.52,125.49,80.14]
[1743556314094,7.9668,125.52,125.49,80.14]
[1743556319605,27.8839,125.52,125.49,80.14]
[1743556319914,43.72704882,125.52,125.49,80.14]
[1743556320275,15.84314882,125.51,125.49,80.14]
[1743556320480,15.84314882,125.5,125.48,0.0001]
[1743556320825,43.81184882,125.49,125.48,0.0001]
[1743556321197,45.44254882,125.49,125.47,0.0001]
[1743556321399,15.84314882,125.48,125.47,0.0001]
[1743556321902,22.43047196,125.48,125.47,0.0001]
[1743556322303,41.08012082,125.48,125.47,0.0001]
[1743556322509,20.0,125.46,125.45,2.369e-05]
[1743556322810,67.07689764,125.46,125.45,2.369e-05]
[1743556323311,51.23374882,125.46,125.45,2.369e-05]
[1743556323692,60.77968263,125.46,125.45,2.369e-05]
[1743556324416,260.77968263,125.46,125.45,2.369e-05]
[1743556324917,253.35968263,125.46,125.45,2.369e-05]
[1743556329923,233.35968263,125.46,125.45,2.369e-05]
[1743556330213,200.0,125.46,125.45,2.369e-05]
[1743556333800,233.35968263,125.46,125.45,2.369e-05]
[1743556334008,225.38908263,125.46,125.45,2.369e-05]
[1743556334312,200.0,125.46,125.45,2.369e-05]
[1743556334891,200.0,125.46,125.45,80.14002369]
[1743556339402,207.9706,125.46,125.45,80.14002369]
[1743556341623,200.0,125.46,125.45,80.14002369]
[1743556343522,200.0,125.46,125.45,88.11132369]
[1743556344603,200.0,125.46,125.45,106.76097255]
[1743556349814,200.0,125.46,125.45,107.04529569]
[1743556350045,119.86,125.46,125.45,26.90529569]
[1743556350208,119.86,125.46,125.45,32.90529569]
[1743556351635,0.063,125.52,125.48,20.0]
[1743556351816,0.063,125.52,125.49,26.00964886]
[1743556352010,0.063,125.52,125.51,38.64964886]
[1743556352210,0.063,125.55,125.53,0.28432314]
[1743556352411,0.063,125.58,125.55,38.933972]
[1743556352630,0.063,125.58,125.55,119.833972]
[1743556353311,0.063,125.58,125.55,99.54964886]
[1743556353813,0.063,125.58,125.55,80.9]
[1743556353814,15.90999822,125.58,125.55,80.9]
[1743556354018,15.84699822,125.56,125.51,80.9]
[1743556354213,15.84699822,125.52,125.48,80.9]
[1743556354735,7.9674,125.51,125.48,80.9]
[1743556354933,23.81439822,125.51,125.48,80.9]
[1743556355232,15.84699822,125.5,125.45,80.90002369]
[1743556356845,7.9674,125.51,125.45,80.90002369]
[1743556358140,62.03679822,125.55,125.46,18.64964886]
[1743556358438,27.8794,125.54,125.46,99.54964886]
[1743556360337,43.72639822,125.54,125.46,99.54964886]
[1743556361510,27.8794,125.54,125.48,18.64964886]
[1743556361924,27.8794,125.54,125.49,7.38]
[1743556362133,27.8794,125.54,125.49,88.28]
[1743556362638,43.72639822,125.54,125.49,88.28]
[1743556362840,15.84699822,125.52,125.49,80.9]
[1743556363341,15.84699822,125.53,125.49,80.9]
[1743556363641,15.84699822,125.53,125.46,88.28]
[1743556364427,15.84699822,125.53,125.46,80.9]
[1743556365242,43.72639822,125.54,125.46,80.9]
[1743556365418,27.8794,125.54,125.47,18.64964886]
[1743556366521,7.9655,125.54,125.47,119.54964886]
[1743556368243,7.9655,125.54,125.48,0.28432314]
[1743556370125,7.9655,125.54,125.49,18.64964886]
[1743556370320,7.9655,125.54,125.49,99.54964886]
[1743556370517,27.8794,125.54,125.49,80.9]
[1743556371142,43.72639822,125.54,125.49,80.9]
[1743556371523,15.84699822,125.53,125.49,80.9]
[1743556371939,6.0514,125.49,125.46,0.03]
[1743556372144,15.84699822,125.47,125.46,0.03]
[1743556372844,6.0514,125.49,125.46,0.03]
[1743556372845,15.84699822,125.48,125.46,0.03]
[1743556373420,21.89839822,125.49,125.46,0.03]
[1743556373621,7.9693,125.48,125.46,0.03]
[1743556376029,7.9693,125.48,125.46,80.93]
[1743556376644,33.33683857,125.48,125.46,80.93]
[1743556376843,7.9693,125.48,125.46,80.93]
[1743556377143,33.33683857,125.48,125.46,80.93]
[1743556379950,7.9693,125.48,125.46,80.93]
[1743556380747,7.9668,125.52,125.46,0.03]
[1743556380946,7.9668,125.52,125.46,80.93]
[1743556381337,7.9658,125.54,125.47,38.933972]
[1743556381535,0.063,125.55,125.48,7.9693]
[1743556381736,0.063,125.55,125.49,7.36]
[1743556382153,25.43053857,125.55,125.49,7.36]
[1743556382837,25.36753857,125.54,125.48,80.9]
[1743556383964,7.9662,125.53,125.48,80.9]
[1743556386056,33.33373857,125.53,125.48,80.9]
[1743556386261,31.87773857,125.51,125.46,80.93]
[1743556386636,25.36753857,125.5,125.46,80.93]
[1743556387375,6.5102,125.51,125.46,80.93]
[1743556387597,27.8817,125.53,125.46,80.93]
[1743556388758,7.9662,125.53,125.46,88.9005]
[1743556389766,27.8817,125.53,125.46,80.93]
[1743556389963,27.8817,125.53,125.46,88.9006]
[1743556390149,7.9662,125.53,125.46,88.9006]
[1743556391548,0.063,125.55,125.48,20.0]
[1743556391754,0.063,125.55,125.5,38.64964886]
[1743556391950,0.063,125.55,125.51,1.5584]
[1743556392150,0.063,125.55,125.51,82.4584]
[1743556393856,0.063,125.55,125.51,90.4256]
[1743556395062,0.063,125.55,125.51,82.4584]
[1743556395399,0.063,125.55,125.51,80.9]
[1743556396969,0.063,125.55,125.51,88.8674]
[1743556398555,0.063,125.55,125.52,38.64964886]
[1743556398968,0.063,125.55,125.52,18.64964886]
[1743556399679,0.063,125.55,125.52,26.61634886]
[1743556400390,0.063,125.55,125.52,46.61634886]
[1743556401573,0.063,125.55,125.52,26.61634886]
[1743556402374,0.063,125.55,125.52,127.51634886]
[1743556402685,0.063,125.55,125.52,107.51634886]
[1743556403994,0.063,125.55,125.52,127.51634886]
[1743556405690,0.063,125.55,125.52,80.9]
[1743556406499,0.063,125.55,125.52,88.8666]
[1743556406700,0.063,125.55,125.53,18.64964886]
[1743556406899,0.063,125.55,125.54,7.34]
[1743556407195,0.063,125.55,125.54,107.03181043]
[1743556407784,0.063,125.55,125.54,135.139472]
[1743556407999,0.063,125.55,125.54,136.721972]
[1743556410194,0.063,125.58,125.56,0.28432314]
[1743556410476,0.063,125.58,125.57,18.933972]
[1743556410895,0.063,125.58,125.57,99.833972]
[1743556413098,0.063,125.58,125.57,80.9]
[1743556413997,0.063,125.58,125.57,99.833972]
[1743556414377,0.063,125.58,125.57,107.797572]
[1743556414598,0.063,125.58,125.57,99.833972]
[1743556418296,0.063,125.58,125.57,107.797572]
[1743556418799,0.063,125.58,125.57,99.833972]
[1743556420502,0.063,125.58,125.57,99.54964886]
[1743556421196,0.063,125.58,125.57,80.9]
[1743556423100,0.063,125.58,125.53,80.9]
[1743556425185,0.063,125.58,125.54,18.64964886]
[1743556425584,5.063,125.58,125.54,18.64964886]
[1743556426199,13.0263,125.58,125.54,18.64964886]
[1743556427487,5.063,125.58,125.55,0.28432314]
[1743556428199,13.0262,125.58,125.55,0.28432314]
[1743556428810,13.0262,125.58,125.54,99.54964886]
[1743556429417,5.063,125.58,125.55,0.28432314]
[1743556429809,13.026,125.58,125.54,99.54964886]
[1743556430140,13.026,125.58,125.54,99.57964886]
[1743556431024,13.026,125.58,125.54,80.93]
[1743556431404,32.9336,125.58,125.54,80.93]
[1743556431792,6.4723,125.57,125.54,0.03]
[1743556432014,1.5652,125.56,125.54,0.03]
[1743556432812,7.9649,125.55,125.54,0.03]
[1743556433195,6.4723,125.57,125.54,0.03]
[1743556434717,13.0264,125.58,125.54,80.93]
[1743556434918,5.063,125.58,125.55,18.64964886]
[1743556435094,5.063,125.58,125.55,106.80964886]
[1743556437404,13.0262,125.58,125.55,106.80964886]
[1743556438429,13.0262,125.58,125.55,88.16]
[1743556438917,32.9338,125.58,125.55,80.9]
[1743556440019,13.0262,125.58,125.55,80.9]
[1743556440426,5.063,125.58,125.56,18.64964886]
[1743556442115,5.063,125.58,125.57,7.24]
[1743556442314,5.063,125.58,125.57,106.78964886]
[1743556445628,5.063,125.58,125.57,107.073972]
[1743556448634,5.063,125.58,125.57,88.14]
[1743556448819,13.026,125.58,125.57,88.14]
[1743556449013,13.026,125.58,125.57,80.9]
[1743556452236,13.026,125.58,125.55,80.9]
[1743556453139,13.026,125.58,125.55,80.93]
[1743556459636,20.0,125.56,125.55,0.03]
[1743556459825,31.75068478,125.56,125.55,0.03]
[1743556461643,39.71498478,125.56,125.55,0.03]
[1743556463542,39.71498478,125.56,125.54,0.03]
[1743556463718,15.84047139,125.55,125.54,0.03]
[1743556464133,23.80537139,125.55,125.54,0.03]
[1743556464818,23.80537139,125.55,125.54,0.0001]
[1743556465020,29.89087139,125.55,125.54,0.0001]
[1743556472357,14.0504,125.55,125.54,0.0001]
[1743556472955,29.89087139,125.55,125.54,0.0001]
[1743556473560,14.0504,125.55,125.54,0.0001]
[1743556474250,7.9649,125.55,125.54,0.0001]
[1743556477360,8.0279,125.55,125.54,0.0001]
[1743556478961,25.75519453,125.55,125.54,0.0001]
[1743556479137,15.84047139,125.49,125.46,0.03]
[1743556479344,15.84047139,125.47,125.46,0.03]
[1743556479528,16.12479453,125.47,125.46,0.0001]
[1743556480139,24.09479453,125.47,125.46,0.0001]
[1743556481757,23.81047139,125.47,125.46,0.0001]
[1743556481943,7.9693,125.48,125.46,0.0001]
[1743556483458,7.2,125.51,125.46,0.0001]
[1743556483659,7.9676,125.51,125.46,0.0001]
[1743556483978,7.967,125.52,125.46,0.0001]
[1743556484146,7.967,125.52,125.46,88.8707]
[1743556485248,7.967,125.52,125.46,80.9001]
[1743556485862,7.967,125.52,125.46,88.8707]
[1743556486057,7.9663,125.53,125.46,88.8707]
[1743556487061,31.49717139,125.54,125.47,18.64964886]
[1743556487268,80.663,125.55,125.48,0.28432314]
[1743556487269,0.063,125.55,125.48,0.28432314]
[1743556487451,0.063,125.55,125.49,18.64964886]
[1743556487646,0.063,125.55,125.49,25.84964886]
[1743556488361,0.063,125.55,125.5,7.9681]
[1743556488951,0.063,125.55,125.49,114.71814886]
[1743556489152,0.063,125.55,125.49,106.74964886]
[1743556490963,15.90347139,125.55,125.49,80.9]
[1743556491155,15.84047139,125.54,125.49,80.9]
[1743556492551,7.9662,125.53,125.49,80.9]
[1743556494650,7.9655,125.54,125.49,80.9]
[1743556496372,23.80597139,125.54,125.49,80.9]
[1743556496568,15.84047139,125.53,125.49,80.9]
[1743556496754,7.9668,125.52,125.49,80.9]
[1743556496959,7.9668,125.52,125.47,88.08]
[1743556497667,27.8839,125.52,125.47,88.08]
[1743556500273,43.72437139,125.52,125.47,80.9]
[1743556500464,15.84047139,125.51,125.47,80.9]
[1743556500778,27.8884,125.5,125.47,80.9]
[1743556500964,27.8884,125.5,125.46,0.0001]
[1743556501172,15.84047139,125.49,125.46,0.0001]
[1743556501350,15.84047139,125.48,125.46,0.0001]
[1743556501549,35.84047139,125.47,125.46,0.0001]
[1743556501771,42.17357139,125.47,125.46,0.0001]
[1743556502172,27.8884,125.5,125.46,0.0001]
[1743556502173,43.72887139,125.5,125.46,0.0001]
[1743556502360,27.8884,125.5,125.46,0.0001]
[1743556502562,7.9681,125.5,125.46,80.9001]
[1743556502875,7.9674,125.51,125.46,80.9001]
[1743556503968,43.72657139,125.51,125.46,80.9001]
[1743556504173,15.84047139,125.5,125.46,80.9001]
[1743556504678,7.9687,125.49,125.46,80.9001]
[1743556504976,7.9674,125.51,125.46,80.9001]
[1743556505163,7.9674,125.51,125.46,96.0905]
[1743556505560,7.9674,125.51,125.46,88.1201]
[1743556505968,7.9674,125.51,125.46,96.0907]
[1743556506881,7.9668,125.52,125.46,88.1201]
[1743556508289,5.0,125.53,125.47,18.933972]
[1743556508491,5.0,125.53,125.49,0.28432314]
[1743556508661,5.0,125.53,125.51,0.28432314]
[1743556508867,5.0,125.53,125.52,18.64964886]
[1743556509663,0.063,125.54,125.52,13.64964886]
[1743556510059,8.0286,125.54,125.51,80.9]
[1743556510973,0.063,125.54,125.51,88.8673]
[1743556511781,0.063,125.54,125.51,80.9]
[1743556511985,0.063,125.54,125.52,18.933972]
[1743556512286,0.063,125.54,125.51,80.9]
[1743556514385,0.063,125.54,125.52,18.64964886]
[1743556514777,0.063,125.54,125.53,7.52432314]
[1743556515395,0.063,125.54,125.53,7.24]
[1743556516371,0.063,125.54,125.53,25.88964886]
[1743556518970,0.063,125.54,125.53,33.85584886]
[1743556519172,0.063,125.54,125.53,25.88964886]
[1743556519665,0.063,125.54,125.53,106.78964886]
[1743556520068,0.063,125.54,125.53,115.040172]
[1743556520270,0.063,125.55,125.54,99.48664886]
[1743556520482,0.063,125.58,125.56,0.28432314]
[1743556520686,0.063,125.58,125.57,25.88964886]
[1743556522091,0.063,125.58,125.57,107.010972]
[1743556523491,0.063,125.58,125.57,134.974572]
[1743556525089,0.063,125.6,125.59,60.598772]
[1743556525290,0.063,125.65,125.62,0.28432314]
[1743556525598,0.063,125.65,125.63,18.64964886]
[1743556526195,0.063,125.65,125.64,0.28432314]
[1743556528111,0.063,125.65,125.63,119.48664886]
[1743556528315,0.063,125.65,125.63,99.48664886]
[1743556528610,0.063,125.65,125.63,80.837]
[1743556531392,8.0216,125.65,125.63,80.837]
[1743556532204,43.75857139,125.65,125.59,106.72664886]
[1743556532386,15.84047139,125.64,125.59,88.077]
[1743556533203,7.9598,125.63,125.59,88.077]
[1743556533399,7.9595,125.64,125.6,18.64964886]
[1743556534208,8.0217,125.65,125.6,99.48664886]
[1743556535410,8.0217,125.65,125.6,107.44814886]
[1743556536686,8.0217,125.65,125.6,80.837]
[1743556536903,17.78466771,125.64,125.6,80.837]
[1743556537712,7.9598,125.63,125.6,80.837]
[1743556538501,27.8595,125.63,125.6,80.837]
[1743556538694,27.8595,125.63,125.57,106.72664886]
[1743556541005,17.78466771,125.61,125.57,80.837]
[1743556541208,19.35196771,125.61,125.54,25.86964886]
[1743556541408,19.35196771,125.61,125.54,99.48664886]
[1743556541586,17.78466771,125.6,125.54,99.48664886]
[1743556542415,19.35196771,125.61,125.54,99.48664886]
[1743556543106,7.9617,125.6,125.54,99.48664886]
[1743556543412,27.8661,125.6,125.54,99.48664886]
[1743556543706,45.65076771,125.6,125.54,99.48664886]
[1743556545710,27.8661,125.6,125.54,99.48664886]
[1743556546589,10.0,125.61,125.55,20.28432314]
[1743556547004,10.0,125.61,125.57,0.28432314]
[1743556547312,10.0,125.61,125.59,18.64964886]
[1743556547704,10.0,125.61,125.6,0.28432314]
[1743556547899,10.0,125.61,125.6,81.12132314]
[1743556548300,10.0,125.61,125.6,80.837]
[1743556549314,17.9611,125.61,125.6,80.837]
[1743556549505,10.0,125.61,125.6,80.837]
[1743556550821,10.0,125.61,125.6,99.48664886]
[1743556553933,17.9611,125.61,125.6,80.837]
[1743556554135,35.74576771,125.61,125.6,80.837]
[1743556554421,62.06086771,125.61,125.56,80.837]
[1743556554607,17.78466771,125.59,125.56,80.837]
[1743556555614,17.78466771,125.59,125.53,106.68664886]
[1743556555801,17.78466771,125.59,125.53,88.037]
[1743556556006,7.963,125.58,125.53,88.037]
[1743556558031,7.963,125.58,125.54,18.64964886]
[1743556559405,7.963,125.58,125.53,88.037]
[1743556559606,17.78466771,125.57,125.53,80.837]
[1743556559921,27.8706,125.58,125.53,80.837]
[1743556559922,45.65526771,125.58,125.53,80.837]
[1743556560124,45.65526771,125.58,125.53,80.867]
[1743556560518,17.78466771,125.57,125.53,80.867]
[1743556561630,45.65526771,125.58,125.53,80.867]
[1743556562227,17.78466771,125.56,125.53,80.867]
[1743556562535,17.78466771,125.54,125.53,0.03]
[1743556563040,6.3351,125.55,125.53,0.03]
[1743556563241,17.78466771,125.54,125.53,0.03]
[1743556564333,25.75016771,125.54,125.53,0.03]
[1743556565319,25.25016771,125.54,125.53,0.03]
[1743556566038,7.9651,125.55,125.53,0.03]
[1743556566230,10.0,125.56,125.53,0.03]
[1743556566427,10.0,125.56,125.53,99.800972]
[1743556568422,10.0,125.56,125.55,18.64964886]
[1743556568623,10.0,125.56,125.55,25.86964886]
[1743556568839,17.9643,125.56,125.55,7.22]
[1743556569622,17.9643,125.56,125.53,80.867]
[1743556569818,35.76561684,125.56,125.53,80.867]
[1743556570039,17.9643,125.56,125.53,80.867]
[1743556570250,35.76561684,125.56,125.53,80.867]
[1743556570819,17.80131684,125.55,125.53,0.03]
[1743556571024,17.80131684,125.54,125.53,0.03]
[1743556571631,28.51652394,125.54,125.53,0.03]
[1743556572245,46.48082394,125.56,125.53,0.03]
[1743556572948,17.9643,125.56,125.53,0.03]
[1743556574324,46.47020408,125.56,125.53,0.03]
[1743556575347,66.38090408,125.56,125.53,0.03]
[1743556575540,28.50590408,125.55,125.53,0.03]
[1743556576041,17.9643,125.56,125.53,0.03]
[1743556577173,36.47140408,125.54,125.53,0.03]
[1743556578346,7.9655,125.54,125.53,0.03]
[1743556578842,27.9655,125.54,125.53,0.03]
[1743556579448,20.0,125.54,125.53,0.03]
[1743556579930,27.9655,125.54,125.53,0.03]
[1743556580648,20.0,125.54,125.53,0.03]
[1743556580864,27.9655,125.54,125.53,0.03]
[1743556582137,56.47140408,125.54,125.53,0.03]
[1743556584450,36.47140408,125.54,125.53,0.03]
[1743556584849,7.9651,125.55,125.53,0.03]
[1743556585035,18.0275,125.56,125.53,0.03]
[1743556586347,28.50590408,125.55,125.53,0.03]
[1743556586839,7.9655,125.54,125.53,0.03]
[1743556587648,28.50590408,125.54,125.53,0.03]
[1743556588350,20.0,125.51,125.47,80.867]
[1743556588548,28.50590408,125.5,125.47,0.03]
[1743556588744,28.50590408,125.49,125.47,0.03]
[1743556589053,7.9693,125.48,125.47,0.03]
[1743556592345,7.9693,125.48,125.46,0.0001]